bitfinex/quotes_ETHUSD_20250708
["timestamp","ask_amount","ask_price","bid_price","bid_amount"]
[1751995560131,28.5178501,2616.0,2615.9,0.001]
[1751995560299,32.5178501,2616.0,2615.9,0.001]
[1751995562816,28.5178501,2616.0,2615.9,0.001]
[1751995563236,12.29422014,2616.0,2615.9,0.001]
[1751995563529,20.84782996,2616.0,2615.9,0.001]
[1751995563728,10.8252,2616.0,2615.9,0.001]
[1751995564034,6.3904,2616.0,2615.9,0.001]
[1751995565337,0.1904,2616.0,2615.9,0.001]
[1751995565516,6.199,2616.1,2615.9,0.001]
[1751995565699,0.1904,2616.2,2615.9,0.001]
[1751995565900,6.3894,2616.2,2615.9,0.001]
[1751995566328,6.3894,2616.2,2615.9,3.82375387]
[1751995566539,0.7831,2616.5,2615.9,4.38065374]
[1751995566703,6.3894,2616.4,2616.0,3.8225845]
[1751995566902,10.21153268,2616.4,2615.9,4.57104185]
[1751995567427,10.21153268,2616.4,2616.0,3.82260059]
[1751995567613,6.3894,2616.4,2616.0,3.82260059]
[1751995567929,6.3894,2616.4,2616.0,3.82262179]
[1751995568136,6.3894,2616.4,2615.9,4.01417511]
[1751995568333,3.82221012,2616.3,2615.9,4.01417511]
[1751995568535,10.21150505,2616.4,2615.9,4.01417511]
[1751995568832,10.21150505,2616.4,2615.9,4.01411333]
[1751995569200,3.82222789,2616.3,2615.9,0.1914]
[1751995569402,6.197,2616.2,2615.9,0.1914]
[1751995569631,13.82262996,2616.0,2615.9,0.001]
[1751995569817,20.80602996,2616.0,2615.9,0.001]
[1751995571248,24.80602996,2616.0,2615.9,0.001]
[1751995572812,20.80602996,2616.0,2615.9,0.001]
[1751995576241,24.80602996,2616.0,2615.9,0.001]
[1751995576453,24.80602996,2616.0,2615.3,0.001]
[1751995576454,4.61860692,2615.4,2615.3,0.001]
[1751995576671,10.81260692,2615.4,2615.3,0.001]
[1751995577365,20.81260692,2615.4,2615.3,0.001]
[1751995578554,14.61860692,2615.4,2615.3,0.001]
[1751995578752,13.82350692,2615.4,2615.3,0.001]
[1751995578968,10.0,2615.4,2615.3,0.001]
[1751995579175,16.3834,2615.4,2615.3,0.001]
[1751995579376,6.3834,2615.4,2615.3,0.001]
[1751995579563,0.1904,2615.4,2615.3,0.001]
[1751995579752,10.0,2615.5,2615.3,0.001]
[1751995579965,6.193,2615.4,2615.3,0.001]
[1751995580286,0.1904,2615.7,2615.3,0.001]
[1751995580452,3.82465381,2616.0,2615.4,0.7843]
[1751995580653,0.1904,2615.8,2615.4,1.26424126]
[1751995580854,0.1904,2615.8,2615.4,0.7843]
[1751995581054,3.82350692,2615.4,2615.3,0.001]
[1751995581250,4.01384344,2615.5,2615.3,0.001]
[1751995581482,3.82350692,2615.4,2615.3,0.001]
[1751995581771,4.01383345,2615.5,2615.3,0.001]
[1751995581981,0.1904,2615.5,2615.3,0.001]
[1751995582198,4.01376326,2615.5,2615.3,0.001]
[1751995583272,3.82350692,2615.4,2615.3,0.001]
[1751995583680,4.01382643,2615.5,2615.3,0.001]
[1751995584571,3.82350692,2615.4,2615.3,0.001]
[1751995585085,10.20390692,2615.4,2615.3,0.001]
[1751995585486,11.68555427,2615.4,2615.3,0.001]
[1751995586868,21.68555427,2615.4,2615.3,0.001]
[1751995589008,21.68355427,2615.4,2615.3,0.001]
[1751995589208,10.1904,2615.4,2615.3,0.001]
[1751995589508,20.20190692,2615.4,2615.3,0.001]
[1751995590477,16.3784,2615.4,2615.3,0.001]
[1751995590675,20.20190692,2615.4,2615.3,0.001]
[1751995593690,20.98680692,2615.4,2615.3,0.001]
[1751995593892,3.82394554,2615.1,2615.0,0.0729951]
[1751995594117,20.77464554,2615.1,2615.0,1e-08]
[1751995594482,21.06745342,2615.1,2615.0,1e-08]
[1751995594683,14.58864554,2615.1,2615.0,1e-08]
[1751995594923,20.77364554,2615.1,2615.0,1e-08]
[1751995595093,24.77364554,2615.1,2615.0,1e-08]
[1751995595734,18.58864554,2615.1,2615.0,1e-08]
[1751995596033,24.77364554,2615.1,2615.0,1e-08]
[1751995596785,18.58864554,2615.1,2615.0,1e-08]
[1751995596986,24.77264554,2615.1,2615.0,1e-08]
[1751995597407,14.01539073,2615.0,2614.5,3.12682224]
[1751995597687,6.3752,2614.9,2614.5,3.82473576]
[1751995597886,10.19946469,2614.9,2614.4,3.82485222]
[1751995598082,6.3752,2614.9,2614.4,3.82485222]
[1751995598284,6.3752,2614.9,2614.5,3.82471071]
[1751995598713,0.1912,2614.9,2614.3,0.979]
[1751995598921,6.184,2614.8,2614.6,3.82461227]
[1751995599095,6.184,2614.8,2614.7,3.82453053]
[1751995599293,6.184,2614.8,2614.6,3.82461142]
[1751995599613,6.3742,2614.9,2614.5,3.82475564]
[1751995599797,6.3742,2614.9,2614.6,3.82466794]
[1751995599992,6.3742,2614.9,2614.5,3.82473776]
[1751995600414,6.3742,2614.9,2614.5,3.82573776]
[1751995600626,5.8654,2614.9,2614.6,3.82465168]
[1751995601119,9.68965285,2614.9,2614.5,0.91191736]
[1751995601285,4.01545285,2614.9,2614.5,0.91191736]
[1751995601488,6.183,2614.8,2614.5,0.91191736]
[1751995602522,5.483,2614.8,2614.5,4.73666914]
[1751995603807,6.182,2614.8,2614.6,3.82466098]
[1751995604119,6.182,2614.8,2614.6,0.87527169]
[1751995604320,6.182,2614.8,2614.5,3.82574898]
[1751995604521,0.1912,2614.9,2614.5,0.001]
[1751995604821,6.3722,2614.9,2614.7,3.82445748]
[1751995605024,0.1912,2614.9,2614.7,3.82445748]
[1751995605394,0.1912,2614.9,2614.6,3.82460015]
[1751995605615,0.1912,2614.9,2614.7,0.38256002]
[1751995606098,20.0050051,2615.1,2614.7,0.38256002]
[1751995606302,20.1962051,2615.1,2614.7,0.38256002]
[1751995607103,14.0152051,2615.1,2614.7,0.38256002]
[1751995607303,6.179,2615.0,2614.7,0.38256002]
[1751995607620,10.00311405,2615.0,2614.6,0.1912]
[1751995607796,6.179,2615.0,2614.6,4.01585615]
[1751995608616,6.179,2615.0,2614.6,4.01580144]
[1751995609123,10.00310596,2615.0,2614.6,4.01580144]
[1751995609297,10.00310596,2615.0,2614.6,0.1912]
[1751995609694,3.82435737,2614.9,2614.6,0.1912]
[1751995609901,3.82445267,2614.8,2614.5,0.001]
[1751995610091,0.1912,2614.7,2614.5,0.001]
[1751995610623,0.1912,2614.8,2614.5,3.82581517]
[1751995610793,0.1912,2614.8,2614.5,0.001]
[1751995611637,3.8236465,2615.4,2614.5,0.001]
[1751995611638,3.82467681,2614.6,2614.5,0.001]
[1751995611790,4.01587681,2614.6,2614.5,0.001]
[1751995612633,14.01587681,2614.6,2614.5,0.001]
[1751995614243,14.83497681,2614.6,2614.5,1e-08]
[1751995614397,20.53057494,2614.6,2614.5,1e-08]
[1751995616735,21.08057494,2614.6,2614.5,1e-08]
[1751995618534,26.70357494,2614.6,2614.5,1e-08]
[1751995620544,20.53057494,2614.6,2614.5,1e-08]
[1751995620750,26.70357494,2614.6,2614.5,1e-08]
[1751995621549,34.63357494,2614.6,2614.5,1e-08]
[1751995622222,34.63357494,2614.6,2613.5,0.7795]
[1751995622223,3.82577178,2613.9,2613.5,0.25384771]
[1751995622524,6.3632,2613.8,2613.5,0.25384771]
[1751995622742,10.18908799,2613.8,2613.5,0.25384771]
[1751995622937,3.82602517,2613.7,2613.5,0.25384771]
[1751995623129,3.82611255,2613.7,2613.4,0.001]
[1751995623336,0.1912,2613.6,2613.4,0.001]
[1751995623985,4.01734308,2613.6,2613.4,0.001]
[1751995624131,10.18842058,2613.6,2613.4,0.001]
[1751995624331,3.82628658,2613.5,2613.4,0.001]
[1751995626466,5.24930658,2613.5,2613.4,0.001]
[1751995628159,15.24930658,2613.5,2613.4,0.001]
[1751995628360,15.79930658,2613.5,2613.4,1e-08]
[1751995628568,19.79930658,2613.5,2613.4,1e-08]
[1751995628972,19.79930658,2613.5,2612.4,0.0723477]
[1751995628973,3.82775119,2612.5,2612.4,0.0723477]
[1751995629180,9.99575119,2612.5,2612.4,0.0723477]
[1751995630194,6.168,2612.5,2612.4,0.0723477]
[1751995631057,6.3592,2612.5,2612.4,0.0723477]
[1751995631722,6.3582,2612.5,2612.4,0.0723477]
[1751995632561,0.1912,2612.5,2612.4,3.90024541]
[1751995632874,0.1912,2612.5,2612.4,5.1021945]
[1751995633073,0.1912,2612.5,2612.4,0.5014477]
[1751995634835,0.1912,2612.5,2612.4,0.0723477]
[1751995636911,0.1912,2612.5,2612.4,3.90024541]
[1751995637214,6.3562,2612.5,2612.4,3.90024541]
[1751995638078,6.3562,2612.5,2612.4,0.0723477]
[1751995638642,6.165,2612.6,2612.5,3.82770858]
[1751995639001,0.1912,2612.7,2612.6,3.82760468]
[1751995639206,0.1912,2612.7,2612.6,0.4291]
[1751995639207,6.3552,2612.7,2612.6,0.4291]
[1751995639829,0.1912,2612.7,2612.6,0.4291]
[1751995640132,0.1912,2612.7,2612.6,4.25670468]
[1751995640639,6.3542,2612.7,2612.4,0.0723477]
[1751995641435,3.82775119,2612.5,2612.4,0.0723477]
[1751995641739,9.99075119,2612.5,2612.4,0.0723477]
[1751995642309,6.163,2612.5,2612.4,0.0723477]
[1751995642833,4.01882955,2612.6,2612.4,0.0723477]
[1751995643145,6.162,2612.5,2612.4,0.0723477]
[1751995643330,0.1912,2612.6,2612.4,0.0723477]
[1751995643331,10.18082669,2612.6,2612.4,0.0723477]
[1751995643540,10.18082669,2612.6,2612.4,0.0733477]
[1751995644204,3.82775119,2612.5,2612.4,0.0733477]
[1751995644605,10.18088638,2612.6,2612.4,0.0733477]
[1751995645441,6.3532,2612.6,2612.4,0.0733477]
[1751995645645,10.18090262,2612.6,2612.4,0.0733477]
[1751995646634,0.1912,2612.6,2612.4,0.0733477]
[1751995646819,6.16,2612.5,2612.4,0.5024477]
[1751995647015,6.159,2612.5,2612.4,0.5024477]
[1751995649155,0.1912,2612.7,2612.4,4.33034541]
[1751995649317,6.158,2612.6,2612.4,4.33034541]
[1751995649515,0.7676,2613.2,2612.4,0.54072667]
[1751995649736,0.002,2613.3,2613.1,0.4291]
[1751995649912,0.002,2613.3,2613.2,5.93425839]
[1751995650644,0.002,2613.3,2613.2,6.48425839]
[1751995652450,0.002,2613.3,2613.2,6.29305839]
[1751995652741,1e-08,2613.3,2613.2,16.29305839]
[1751995652941,1e-08,2613.3,2613.2,16.25479114]
[1751995653111,1e-08,2613.3,2613.2,17.92224266]
[1751995653307,1e-08,2613.3,2613.2,16.25479114]
[1751995653506,0.002,2614.4,2614.3,3.8251157]
[1751995653712,0.002,2614.4,2614.3,4.20762727]
[1751995654308,0.002,2614.4,2614.3,4.24587842]
[1751995658551,0.002,2614.4,2614.3,4.20762727]
[1751995660056,0.002,2614.4,2614.3,10.35562727]
[1751995661043,0.002,2614.4,2614.3,4.20762727]
[1751995661351,0.002,2614.4,2614.3,10.35462727]
[1751995661567,0.002,2614.4,2614.3,6.52951157]
[1751995662067,0.002,2614.4,2614.3,4.20762727]
[1751995662259,0.002,2614.4,2614.3,0.1912]
[1751995662424,0.002,2614.4,2614.1,10.16259598]
[1751995662623,0.002,2614.4,2614.2,3.82524639]
[1751995662824,0.002,2614.4,2614.1,10.16256768]
[1751995663020,0.002,2614.4,2614.1,4.01656768]
[1751995663425,0.002,2614.4,2614.2,3.82524935]
[1751995663624,0.002,2614.4,2614.1,4.01652332]
[1751995663856,0.002,2614.4,2614.1,0.1912]
[1751995664058,0.002,2614.4,2614.3,3.8251157]
[1751995664246,0.002,2614.4,2614.3,4.0163157]
[1751995664754,0.002,2614.4,2614.3,0.1912]
[1751995665254,0.002,2614.4,2614.2,0.1912]
[1751995665454,0.7694,2614.4,2614.1,6.144]
[1751995665657,0.7694,2614.4,2613.7,10.23364244]
[1751995665658,3.8251941,2614.3,2613.7,3.8259938]
[1751995665865,3.8251941,2614.3,2613.8,10.16100844]
[1751995665866,0.1912,2614.3,2613.8,10.16100844]
[1751995666026,4.01632484,2614.3,2613.9,3.82555614]
[1751995666437,0.1912,2614.3,2613.9,3.82555614]
[1751995666860,0.1912,2614.3,2613.9,10.38715643]
[1751995668724,0.1912,2614.3,2614.0,3.82554638]
[1751995669128,0.1912,2614.3,2613.9,3.82563191]
[1751995669556,0.1912,2614.3,2614.0,3.82552295]
[1751995670266,0.1912,2614.3,2613.9,3.82562191]
[1751995670468,0.1912,2614.3,2613.9,3.82570105]
[1751995670671,0.1912,2614.3,2614.0,3.82546068]
[1751995671370,0.1912,2614.3,2614.0,3.8254346]
[1751995671679,0.1912,2614.3,2614.1,3.82538566]
[1751995671883,0.1912,2614.3,2614.2,3.82526203]
[1751995672034,0.002,2614.4,2614.2,3.82514706]
[1751995672559,0.002,2614.4,2614.3,3.8251157]
[1751995672780,0.002,2614.4,2614.3,4.0163157]
[1751995673149,0.002,2614.4,2614.3,5.39721829]
[1751995678578,0.002,2614.4,2614.3,5.86456944]
[1751995678864,0.002,2614.4,2614.3,5.82631829]
[1751995679052,0.002,2614.4,2614.3,11.96031829]
[1751995680658,0.002,2614.4,2614.3,10.98021829]
[1751995681457,0.002,2614.4,2614.3,21.21646851]
[1751995682161,0.002,2614.4,2614.3,10.97921829]
[1751995684676,0.002,2614.4,2614.3,4.0163157]
[1751995684857,0.002,2614.4,2614.3,10.1463157]
[1751995685895,0.002,2614.4,2614.3,6.3202]
[1751995686358,0.002,2614.4,2614.3,0.1912]
[1751995686557,0.002,2614.4,2614.3,6.3202]
[1751995687505,0.002,2614.4,2614.3,10.1453157]
[1751995688191,0.002,2614.4,2614.3,0.1912]
[1751995688397,0.002,2614.4,2614.3,6.3182]
[1751995689293,0.8161,2614.4,2614.3,0.1912]
[1751995689510,0.8161,2614.4,2614.0,3.82550815]
[1751995689511,0.8161,2614.4,2614.0,3.82542604]
[1751995689680,4.64107933,2614.4,2614.1,0.1912]
[1751995689879,0.8161,2614.4,2614.1,0.1912]
[1751995690291,0.8161,2614.4,2614.1,4.01659554]
[1751995690610,0.8161,2614.4,2614.1,6.3172]
[1751995691500,4.64107258,2614.4,2614.1,6.3172]
[1751995691805,3.8251157,2614.3,2613.7,3.82585653]
[1751995691973,3.82527321,2614.2,2613.8,0.1912]
[1751995692176,3.82527321,2614.2,2613.8,6.3162]
[1751995692375,4.0163767,2614.3,2613.8,10.14204545]
[1751995692612,0.1912,2614.3,2614.0,10.38615924]
[1751995692912,1.68181039,2614.4,2614.0,10.38615924]
[1751995692913,0.002,2614.4,2614.2,6.75192121]
[1751995693214,0.002,2614.4,2614.2,6.3152]
[1751995693908,0.7824,2614.3,2614.1,6.124]
[1751995695308,0.7824,2614.3,2614.0,6.124]
[1751995695810,0.7824,2614.3,2614.0,9.94953884]
[1751995696009,0.7824,2614.3,2614.1,3.82531328]
[1751995696385,0.7824,2614.3,2614.0,9.94947524]
[1751995696581,0.1932,2614.4,2614.1,6.56072121]
[1751995696790,0.1932,2614.4,2614.1,10.38607601]
[1751995696982,0.1932,2614.4,2614.2,6.122]
[1751995697177,0.7678,2614.3,2614.1,3.8253548]
[1751995697378,4.59299312,2614.3,2614.0,6.122]
[1751995697694,0.7678,2614.3,2614.0,6.122]
[1751995698117,0.7678,2614.3,2614.0,9.9475325]
[1751995699203,0.7678,2614.3,2614.0,6.122]
[1751995699400,3.82532559,2614.2,2614.0,6.12]
[1751995699589,0.1912,2614.2,2614.0,6.12]
[1751995699790,0.1912,2614.2,2613.7,0.1912]
[1751995700128,0.9477,2613.9,2613.8,6.12]
[1751995700490,4.77344445,2613.9,2613.4,0.1912]
[1751995700712,4.77344445,2613.9,2613.3,0.001]
[1751995700713,0.1912,2613.7,2613.5,6.12]
[1751995700923,1.05113771,2613.7,2613.3,0.1922]
[1751995701248,0.1912,2613.7,2613.4,9.94541964]
[1751995702106,4.58226397,2613.9,2613.5,3.82628658]
[1751995702107,0.7565,2613.9,2613.5,3.82628658]
[1751995702304,0.7565,2613.9,2613.4,12.67972121]
[1751995702305,0.1912,2613.9,2613.6,12.67872121]
[1751995702596,0.795,2614.2,2613.6,12.67872121]
[1751995702597,0.1912,2614.0,2613.6,12.67872121]
[1751995702920,0.1912,2614.0,2613.6,16.50478871]
[1751995703303,0.1912,2614.0,2613.7,3.82597631]
[1751995703509,0.1912,2614.0,2613.6,12.67872121]
[1751995703796,0.1912,2614.0,2613.7,3.82591364]
[1751995704002,4.01679743,2614.0,2613.5,4.01743199]
[1751995704238,4.88051841,2614.0,2613.5,4.01743199]
[1751995704395,0.1912,2613.9,2613.6,6.118]
[1751995704592,4.01693898,2613.9,2613.4,4.01755027]
[1751995704916,0.8173,2613.8,2613.5,6.117]
[1751995705093,0.8173,2613.8,2613.5,9.94325555]
[1751995705289,0.8173,2613.8,2613.5,6.117]
[1751995705938,0.8173,2613.8,2613.5,9.94327286]
[1751995706350,0.8173,2613.8,2613.4,0.1912]
[1751995706634,4.0172761,2613.7,2613.3,6.118]
[1751995706835,3.8262055,2613.6,2613.3,0.001]
[1751995707029,3.8262055,2613.6,2613.3,6.117]
[1751995707230,4.01724923,2613.7,2613.3,6.117]
[1751995707533,3.82623657,2613.6,2613.3,6.117]
[1751995708245,3.82643299,2613.4,2613.3,0.001]
[1751995708542,4.83493299,2613.4,2613.3,0.001]
[1751995708857,1.0085,2613.4,2613.3,0.001]
[1751995709354,4.83493299,2613.4,2613.3,0.001]
[1751995711151,0.8173,2613.4,2613.3,0.001]
[1751995711321,3.82596931,2613.8,2613.3,3.82751346]
[1751995711322,10.0,2613.7,2613.3,3.82751346]
[1751995711522,13.8260725,2613.7,2613.3,0.001]
[1751995711751,0.8049,2613.6,2613.3,0.001]
[1751995711924,0.8049,2613.6,2613.3,3.82751182]
[1751995712256,4.63104459,2613.6,2613.3,0.001]
[1751995712851,0.8049,2613.6,2613.3,3.8275632]
[1751995713051,16.9395,2613.8,2613.4,3.82643299]
[1751995713220,0.8265,2613.8,2613.5,3.8262734]
[1751995713554,9.93840897,2614.1,2613.6,3.8260072]
[1751995713731,13.82543461,2614.1,2613.7,3.82589749]
[1751995714149,3.82556884,2614.0,2613.6,3.86432283]
[1751995714659,3.82556884,2614.0,2613.5,3.82622711]
[1751995715056,4.65234602,2613.9,2613.5,6.112]
[1751995715257,4.65220166,2613.9,2613.5,9.93827883]
[1751995715451,3.82585886,2613.8,2613.4,3.82639277]
[1751995715647,3.82585886,2613.8,2613.5,6.112]
[1751995715855,4.65224868,2613.9,2613.5,6.112]
[1751995716061,3.82585019,2613.8,2613.5,6.112]
[1751995716265,3.82584742,2613.8,2613.4,6.111]
[1751995717267,3.82601669,2613.7,2613.3,0.001]
[1751995718377,4.64871106,2613.6,2613.3,0.001]
[1751995719242,3.82643299,2613.4,2613.3,0.001]
[1751995720572,13.82636353,2613.5,2613.3,0.001]
[1751995720777,10.0,2613.5,2613.3,0.001]
[1751995721070,14.01751094,2613.5,2613.3,0.001]
[1751995721774,14.01756388,2613.5,2613.3,0.001]
[1751995722359,6.107,2613.5,2613.3,0.001]
[1751995723379,6.107,2613.5,2613.3,3.8275779]
[1751995723575,6.107,2613.5,2613.4,3.82643299]
[1751995723779,6.107,2613.5,2613.3,0.001]
[1751995725087,9.93335795,2613.5,2613.3,0.001]
[1751995725381,0.1912,2613.4,2613.3,0.001]
[1751995725586,6.107,2613.5,2613.3,3.82757942]
[1751995725782,0.8225,2613.6,2613.4,3.82632659]
[1751995725783,0.1912,2613.6,2613.4,3.82632659]
[1751995725983,10.0,2613.8,2613.5,3.86448504]
[1751995726182,10.0,2613.8,2613.5,3.82622218]
[1751995726794,13.82598113,2613.8,2613.4,0.1912]
[1751995726999,1.0153,2614.0,2613.6,3.82604271]
[1751995727165,1.0112,2614.2,2613.8,3.82584742]
[1751995727491,0.82,2614.2,2613.9,3.82566]
[1751995728079,10.1912,2614.3,2614.0,3.82540962]
[1751995728291,10.1912,2614.3,2613.9,3.82566]
[1751995728292,16.2952,2614.3,2613.9,3.82564887]
[1751995729201,10.1912,2614.3,2613.9,3.82564887]
[1751995729509,6.2952,2614.3,2614.0,3.82545529]
[1751995729792,0.002,2614.4,2614.0,1.21716134]
[1751995729994,0.002,2614.4,2614.3,3.8251157]
[1751995730301,0.002,2614.4,2614.3,0.1912]
[1751995730472,0.002,2614.4,2614.3,4.0163157]
[1751995730997,0.002,2614.4,2614.3,4.05456685]
[1751995731200,0.002,2614.4,2614.3,7.45587684]
[1751995731398,0.002,2614.4,2614.3,6.90587684]
[1751995731600,0.002,2614.4,2614.3,0.1912]
[1751995731896,0.002,2614.4,2614.1,0.03825408]
[1751995732098,0.002,2614.4,2614.2,0.1912]
[1751995732475,0.002,2614.4,2614.3,3.86336685]
[1751995732671,0.002,2614.4,2614.3,4.48366685]
[1751995732995,0.002,2614.4,2614.3,1.02209048]
[1751995733295,0.002,2614.4,2614.3,4.84720618]
[1751995734799,0.002,2614.4,2614.3,1.02209048]
[1751995735164,0.002,2614.4,2614.3,0.1912]
[1751995735371,0.002,2614.4,2613.5,1.67317961]
[1751995735372,0.002,2614.4,2613.9,0.4291]
[1751995735568,3.82519428,2614.3,2614.0,6.2892]
[1751995735971,3.82704044,2614.4,2614.0,6.2892]
[1751995736205,3.82512145,2614.3,2614.0,6.2892]
[1751995736718,3.82540836,2614.1,2614.0,0.1912]
[1751995736882,3.8251157,2614.3,2613.8,6.097]
[1751995737211,0.002,2614.4,2613.9,0.03825701]
[1751995737418,3.82698353,2614.4,2614.1,0.1912]
[1751995737783,0.002,2614.4,2614.1,0.1912]
[1751995737998,3.8269814,2614.4,2614.1,0.1912]
[1751995739009,3.82514114,2614.3,2614.1,0.1912]
[1751995739214,3.8270343,2614.4,2614.1,0.1912]
[1751995740225,0.002,2614.4,2614.1,4.0166038]
[1751995740388,0.002,2614.4,2614.1,0.97542457]
[1751995740592,3.82697887,2614.4,2614.1,0.97542457]
[1751995740788,3.82697887,2614.4,2614.1,0.1912]
[1751995740984,3.82512954,2614.3,2614.1,0.1912]
[1751995741189,3.82512954,2614.3,2613.8,6.094]
[1751995741190,3.82526203,2614.2,2613.8,6.094]
[1751995741385,3.82526203,2614.2,2614.0,0.1912]
[1751995741889,3.82518151,2614.3,2614.0,0.1912]
[1751995742090,3.82529008,2614.2,2614.0,0.1912]
[1751995742291,3.82518856,2614.3,2614.0,0.1912]
[1751995742516,3.82528672,2614.2,2614.0,0.1912]
[1751995742719,4.60965425,2614.2,2613.5,0.4291]
[1751995742892,6.9132,2614.1,2613.3,3.82755784]
[1751995743092,3.82600668,2613.7,2613.4,0.1912]
[1751995743695,4.0170474,2613.9,2613.4,0.1912]
[1751995743696,0.1912,2613.9,2613.4,0.1912]
[1751995743888,4.01696441,2613.9,2613.4,4.01756254]
[1751995744094,3.82588498,2613.8,2613.4,0.1912]
[1751995744402,4.01694108,2613.9,2613.4,4.01753935]
[1751995744713,3.8258793,2613.8,2613.4,0.1912]
[1751995745504,3.8258793,2613.8,2613.4,0.22946432]
[1751995745709,4.0169803,2613.9,2613.4,4.05586375]
[1751995746024,3.82584762,2613.8,2613.4,4.05581903]
[1751995746396,3.82584762,2613.8,2613.4,0.22946432]
[1751995746618,3.82584762,2613.8,2613.4,4.05588699]
[1751995746892,4.01698729,2613.9,2613.4,4.05589528]
[1751995747328,3.8260018,2613.7,2613.4,0.22946432]
[1751995747657,3.82602597,2613.7,2613.5,0.34773545]
[1751995747925,3.82602597,2613.7,2613.6,0.34773545]
[1751995748118,4.65272597,2613.7,2613.6,0.34773545]
[1751995748316,4.84392597,2613.7,2613.6,0.34773545]
[1751995749543,1.0179,2613.7,2613.6,0.34773545]
[1751995749951,4.8438938,2613.7,2613.6,0.34773545]
[1751995750243,6.31987422,2613.7,2613.6,0.34773545]
[1751995750414,4.8438938,2613.7,2613.6,0.34773545]
[1751995751748,4.8438938,2613.7,2613.6,0.34790032]
[1751995752976,1.0179,2613.7,2613.6,0.34790032]
[1751995753117,13.82515426,2614.3,2613.6,0.34790032]
[1751995753118,0.813,2614.0,2613.6,0.34790032]
[1751995753314,10.0,2613.8,2613.7,0.34790032]
[1751995753560,14.18354958,2613.8,2613.6,0.1912]
[1751995753763,10.0,2613.8,2613.6,0.1912]
[1751995753929,13.82587738,2613.8,2613.6,0.1912]
[1751995754130,13.82587738,2613.8,2613.3,4.25660144]
[1751995754131,4.18365476,2613.7,2613.3,0.001]
[1751995754334,3.8259938,2613.7,2613.4,0.1912]
[1751995754568,3.82628658,2613.5,2613.3,0.001]
[1751995754728,0.35766261,2613.4,2613.3,0.001]
[1751995755535,0.35766261,2613.4,2613.2,0.1912]
[1751995755734,0.35766261,2613.3,2613.2,0.1912]
[1751995755917,4.18424203,2613.3,2613.2,0.1912]
[1751995756122,4.18424203,2613.3,2613.1,0.001]
[1751995756318,0.35766261,2613.2,2613.1,0.001]
[1751995757069,4.18438846,2613.2,2613.1,0.001]
[1751995757368,0.35766261,2613.2,2613.1,0.001]
[1751995757564,4.18438846,2613.2,2613.1,0.001]
[1751995757863,0.7153189,2613.2,2613.1,0.001]
[1751995758520,4.54204475,2613.2,2613.1,0.001]
[1751995758722,6.83793,2613.2,2613.1,0.001]
[1751995758918,7.02913,2613.2,2613.1,0.001]
[1751995759542,3.20240415,2613.2,2613.1,0.001]
[1751995759747,0.7153189,2613.2,2613.1,0.001]
[1751995761561,4.54204475,2613.2,2613.1,0.001]
[1751995761858,0.7153189,2613.2,2613.1,0.001]
[1751995762161,0.9065189,2613.2,2613.1,0.001]
[1751995762348,0.7153189,2613.2,2613.1,0.001]
[1751995762554,0.35766261,2613.2,2613.1,0.001]
[1751995762855,0.35766261,2613.2,2613.1,4.25697229]
[1751995763163,0.35766261,2613.2,2613.1,5.27951248]
[1751995763350,0.35766261,2613.2,2613.1,0.6213]
[1751995764676,0.35766261,2613.2,2613.1,0.001]
[1751995764844,0.35766261,2613.2,2613.1,3.82787229]
[1751995765165,0.35766261,2613.2,2613.1,0.001]
[1751995765554,0.71527161,2613.2,2613.1,0.001]
[1751995765867,4.54200266,2613.2,2613.1,0.001]
[1751995766032,6.00628201,2613.2,2613.1,0.001]
[1751995766640,12.87718201,2613.2,2613.1,0.001]
[1751995767357,12.51956781,2613.2,2613.1,0.001]
[1751995768967,12.1619052,2613.2,2613.1,0.001]
[1751995769468,10.69562585,2613.2,2613.1,0.001]
[1751995769872,4.01808179,2613.1,2612.6,0.22947604]
[1751995770078,10.26396813,2613.0,2612.6,0.22947604]
[1751995770379,0.35794971,2612.9,2612.6,0.1912]
[1751995770575,0.35794971,2612.8,2612.6,0.1912]
[1751995770775,3.82718934,2612.9,2612.6,0.1912]
[1751995770943,9.9060937,2613.0,2612.6,0.1912]
[1751995771269,3.82718115,2612.9,2612.6,0.1912]
[1751995771458,9.90606542,2613.0,2612.6,0.1912]
[1751995771664,9.90606542,2613.0,2612.6,4.01879866]
[1751995771873,6.079,2613.0,2612.6,0.1912]
[1751995772173,4.01864299,2612.8,2612.4,0.2645477]
[1751995772363,10.09564299,2612.8,2612.4,0.2645477]
[1751995772752,0.35803735,2612.7,2612.4,0.2645477]
[1751995772959,10.09564299,2612.8,2612.4,0.2645477]
[1751995773245,0.3580374,2612.7,2612.4,0.2645477]
[1751995773471,6.2682,2612.8,2612.4,4.09243046]
[1751995773671,0.35804622,2612.7,2612.6,3.82760468]
[1751995774033,4.18562178,2612.7,2612.5,0.001]
[1751995774179,0.35804622,2612.6,2612.5,0.001]
[1751995777111,0.35804622,2612.6,2612.5,0.34973345]
[1751995777312,0.3579442,2612.6,2612.5,0.34976372]
[1751995779222,0.3579442,2612.6,2612.5,0.34968504]
[1751995779603,0.3579442,2612.6,2612.5,4.17743623]
[1751995779799,0.3579442,2612.6,2612.5,0.34963715]
[1751995781629,0.3579442,2612.6,2612.5,5.64280151]
[1751995781796,6.072,2613.1,2612.5,5.83393331]
[1751995781988,0.35786686,2613.0,2612.6,0.34863715]
[1751995782192,0.35786686,2612.9,2612.8,0.1912]
[1751995782430,0.35786686,2612.9,2612.8,0.53983715]
[1751995782622,0.35792056,2612.9,2612.8,0.5398672]
[1751995782992,0.35792478,2612.9,2612.8,0.53990182]
[1751995783792,4.18508999,2612.9,2612.8,0.53990182]
[1751995783991,4.18508999,2612.9,2612.8,0.34870182]
[1751995783992,4.95298999,2612.9,2612.8,0.34870182]
[1751995784224,1.12582478,2612.9,2612.4,9.24482817]
[1751995784442,0.35792478,2612.8,2612.6,0.1912]